bitfinex/quotes_ETHUSD_20240612
["timestamp","ask_amount","ask_price","bid_price","bid_amount"]
[1718227740607,0.55,3571.9,3570.2,2.4763]
[1718227740777,1.93178965,3571.8,3570.3,0.54763]
[1718227740978,1.93178965,3571.8,3570.3,3.54763]
[1718227741200,1.93178965,3571.8,3570.3,0.54763]
[1718227741412,2.3762,3571.7,3570.2,2.4763]
[1718227741576,1.43344514,3571.6,3570.2,2.4763]
[1718227743005,1.43344514,3571.6,3570.0,3.0]
[1718227743176,4.43344514,3571.6,3569.9,0.58986368]
[1718227743377,0.63459897,3571.5,3569.9,3.0]
[1718227743604,1.43344514,3571.4,3569.9,3.0]
[1718227745107,1.43344514,3571.4,3569.8,2.73]
[1718227745108,0.55,3571.3,3569.8,2.73]
[1718227745335,2.19904955,3571.2,3569.8,3.003]
[1718227745817,5.19904955,3571.2,3569.8,3.003]
[1718227747492,5.19904955,3571.2,3569.8,0.273]
[1718227747692,5.19904955,3571.2,3569.4,3.0]
[1718227747902,5.19904955,3571.2,3569.3,5.4338]
[1718227748713,5.19904955,3571.2,3569.3,2.4338]
[1718227749124,5.19904955,3571.2,3569.3,2.2958]
[1718227749125,2.038,3571.0,3569.3,2.2958]
[1718227749328,1.43344514,3570.9,3569.3,2.2958]
[1718227749601,0.58818451,3570.8,3569.4,0.52958]
[1718227749802,1.43344514,3570.7,3569.4,3.52958]
[1718227751854,1.43344514,3570.7,3569.4,3.50158]
[1718227755241,1.43344514,3570.7,3569.4,0.50158]
[1718227755448,1.43344514,3570.7,3568.9,4.685]
[1718227755660,1.43344514,3570.7,3568.9,5.05982892]
[1718227755960,2.4146,3570.6,3568.9,5.05982892]
[1718227756115,1.43344514,3570.5,3568.9,5.05982892]
[1718227758622,3.47144514,3570.5,3568.9,4.685]
[1718227758859,0.38480451,3570.4,3568.9,2.17779749]
[1718227759167,1.81824965,3570.4,3568.9,2.17779749]
[1718227759333,2.4401,3570.3,3568.9,2.17779749]
[1718227759650,2.4401,3570.3,3568.6,1.92797492]
[1718227759830,2.4401,3570.3,3568.7,0.38032247]
[1718227760258,1.43344514,3570.2,3568.4,3.0]
[1718227760427,1.43344514,3570.2,3568.4,0.38267718]
[1718227760635,1.43344514,3570.2,3568.4,3.38267718]
[1718227760836,2.86593497,3570.1,3568.5,0.75638772]
[1718227761131,1.43344514,3570.0,3568.5,0.75638772]
[1718227762955,2.4401,3569.9,3568.5,0.75638772]
[1718227763259,1.43344514,3569.8,3568.5,0.75638772]
[1718227764370,2.038,3569.7,3568.5,0.75638772]
[1718227764664,4.46469965,3569.6,3567.9,4.685]
[1718227764865,4.46469965,3569.6,3568.0,2.0763128]
[1718227765249,4.46469965,3569.6,3568.4,2.73]
[1718227765574,3.87354514,3569.6,3568.1,2.3008]
[1718227765935,3.0,3569.5,3567.9,1.685]
[1718227766266,4.43344514,3569.5,3567.9,2.07709798]
[1718227766832,2.038,3569.2,3567.6,2.73]
[1718227767046,4.43344514,3569.5,3567.9,0.58145916]
[1718227767047,2.4401,3568.7,3567.9,0.58145916]
[1718227767246,2.4401,3568.7,3567.8,0.58145916]
[1718227767457,2.4401,3568.7,3567.7,0.58145916]
[1718227767637,2.4401,3568.7,3567.4,0.58145916]
[1718227768366,2.4401,3568.7,3567.3,0.58145916]
[1718227768571,2.4401,3568.7,3567.4,0.31386479]
[1718227772768,3.87354514,3568.7,3567.4,0.31386479]
[1718227773074,1.43344514,3568.6,3567.4,0.31386479]
[1718227773453,1.43344514,3568.6,3567.0,3.58145916]
[1718227773657,1.43344514,3568.6,3567.0,3.0]
[1718227774169,2.4399,3568.5,3567.0,3.0]
[1718227774381,3.87334514,3568.5,3567.0,3.0]
[1718227780080,2.4399,3568.5,3567.1,0.05605215]
[1718227780249,2.4399,3568.5,3567.2,1.15334037]
[1718227780457,1.0308,3570.2,3567.2,1.15334037]
[1718227780458,2.2673,3569.1,3567.5,1.685]
[1718227780680,2.2673,3569.1,3567.8,3.723]
[1718227780883,2.2673,3569.1,3567.9,0.056038]
[1718227781059,2.2673,3569.1,3567.9,3.056038]
[1718227782067,2.2673,3569.7,3567.9,3.056038]
[1718227782253,2.79403,3569.7,3568.0,0.71750623]
[1718227782457,3.0,3569.6,3568.1,0.05603803]
[1718227782684,1.43344514,3569.5,3568.1,0.05603803]
[1718227789203,2.2673,3569.7,3568.3,1.685]
[1718227789363,2.2673,3569.7,3568.4,0.05603068]
[1718227789560,2.2673,3569.7,3568.5,0.45533179]
[1718227789756,2.2673,3569.7,3568.6,0.05603069]
[1718227792159,2.459,3570.2,3568.7,2.3884]
[1718227792361,2.459,3570.2,3568.8,0.05602381]
[1718227792597,2.459,3570.2,3568.9,0.75144559]
[1718227792799,2.459,3570.2,3569.0,0.05602369]
[1718227798381,11.957,3571.4,3569.1,4.45136797]
[1718227798701,1.43344514,3571.3,3569.2,3.05601703]
[1718227798905,1.43344514,3571.3,3569.3,1.06870146]
[1718227799712,2.4716,3572.7,3569.6,1.685]
[1718227799914,2.038,3572.2,3569.9,1.685]
[1718227800089,1.78058965,3572.1,3570.1,2.3601]
[1718227800288,1.78058965,3572.1,3570.2,0.05600288]
[1718227800498,1.78058965,3572.1,3570.3,0.05600308]
[1718227801496,4.78058965,3572.1,3570.4,2.0938686]
[1718227801829,4.78058965,3572.1,3570.4,2.03786551]
[1718227802112,0.68185897,3572.0,3570.5,2.18878655]
[1718227802307,2.11530411,3572.0,3570.5,2.18878655]
[1718227802607,2.11530411,3572.0,3570.2,3.0]
[1718227802608,4.4763,3571.8,3570.2,3.0]
[1718227802813,4.4763,3571.8,3570.1,2.3601]
[1718227802814,1.43344514,3571.7,3570.1,2.3601]
[1718227803016,2.038,3571.1,3569.6,2.2463]
[1718227803223,2.038,3570.7,3569.3,1.59414358]
[1718227803405,2.038,3570.7,3569.0,0.58145916]
[1718227803579,1.43344514,3570.6,3568.9,4.415]
[1718227804712,1.43344514,3570.6,3568.9,2.73]
[1718227804713,4.43344514,3570.6,3568.9,2.73]
[1718227805209,4.43344514,3570.6,3569.0,3.0]
[1718227806012,4.43344514,3570.6,3569.1,2.4791]
[1718227806219,0.68923451,3570.5,3569.1,2.4791]
[1718227806509,1.43344514,3570.4,3569.1,2.4791]
[1718227807384,1.43344514,3570.4,3569.2,0.55]
[1718227809321,1.43344514,3570.4,3569.1,2.4791]
[1718227809322,1.43344514,3570.4,3569.0,3.0]
[1718227809510,1.43344514,3570.4,3569.1,0.55]
[1718227809710,0.71606797,3570.3,3569.1,0.55]
[1718227809900,1.43344514,3570.2,3569.1,0.55]
[1718227810611,1.43344514,3570.2,3569.2,0.04965138]
[1718227811018,1.43344514,3570.2,3568.9,0.05602735]
[1718227811216,1.43344514,3570.2,3569.0,0.55]
[1718227811522,0.21495131,3570.1,3569.0,0.55]
[1718227811854,1.64839645,3570.1,3569.1,0.05602736]
[1718227813091,1.64839645,3570.1,3569.0,0.55]
[1718227813426,1.64839645,3570.1,3569.1,0.05602738]
[1718227813725,1.64839645,3570.1,3568.9,0.55]
[1718227813928,1.64839645,3570.1,3569.0,0.60291]
[1718227815931,2.3479,3571.5,3569.1,4.56978018]
[1718227816251,0.75,3571.3,3569.3,1.685]
[1718227816394,4.87022608,3571.5,3569.5,1.685]
[1718227816395,1.43344514,3571.2,3569.5,1.685]
[1718227816595,1.43344514,3571.2,3569.6,0.37995773]
[1718227816795,1.43344514,3571.2,3569.7,0.55]
[1718227817137,4.3859,3571.5,3569.8,2.10564169]
[1718227817429,3.0,3571.4,3569.9,0.55]
[1718227817632,3.0,3571.4,3570.0,0.05600656]
[1718227817815,3.88193451,3571.4,3570.1,0.8155636]
[1718227818007,3.88193451,3571.4,3570.2,0.05600656]
[1718227818206,3.88193451,3571.4,3570.3,0.60600658]
[1718227818529,3.88193451,3571.4,3570.4,0.55]
[1718227818727,3.88193451,3571.4,3570.1,0.8155636]
[1718227819380,2.40357311,3571.3,3570.1,0.55]
[1718227820332,2.038,3571.2,3570.1,0.55]
[1718227820529,3.47144514,3571.2,3570.1,0.55]
[1718227820911,3.47144514,3571.2,3569.8,0.55]
[1718227821119,3.47144514,3571.2,3569.7,0.55]
[1718227821432,2.17760245,3571.1,3569.8,0.55589454]
[1718227821625,2.17760245,3571.1,3569.6,0.32394543]
[1718227822925,2.3978,3571.0,3569.6,0.32394543]
[1718227823141,1.43344514,3570.9,3569.7,0.6060173]
[1718227823446,1.43344514,3570.9,3569.8,0.05601586]
[1718227823645,2.038,3570.4,3569.0,8.64436916]
[1718227823816,1.43344514,3570.3,3569.0,0.60291]
[1718227824015,1.43344514,3570.3,3568.7,1.685]
[1718227824259,1.43344514,3570.3,3568.7,2.06453762]
[1718227825050,1.43344514,3570.3,3568.7,5.06453762]
[1718227825354,1.43344514,3570.3,3568.8,3.55]
[1718227825509,2.4737,3570.1,3568.8,3.0]
[1718227825715,1.43344514,3570.0,3568.6,5.3672]
[1718227825916,1.43344514,3570.0,3568.7,0.05603162]
[1718227826162,1.43344514,3570.0,3568.8,0.05603163]
[1718227826483,0.42542896,3569.9,3568.6,2.3672]
[1718227826618,1.8588741,3569.9,3568.6,2.3672]
[1718227827115,1.8588741,3569.9,3568.2,3.999]
[1718227827314,3.8968741,3569.9,3568.2,4.38560214]
[1718227827515,3.8968741,3569.9,3568.3,0.55]
[1718227827717,0.93705741,3569.8,3568.4,0.55170613]
[1718227827917,2.4737,3570.1,3568.5,0.55]
[1718227828230,3.90714514,3570.1,3568.5,0.55]
[1718227828616,4.43344514,3570.0,3568.5,0.55]
[1718227829328,2.038,3569.9,3568.5,0.55]
[1718227829524,3.47144514,3569.9,3568.5,0.55]
[1718227829729,2.32795965,3569.8,3568.5,0.55]
[1718227829931,2.391,3569.7,3568.4,0.55]
[1718227830128,2.391,3569.7,3568.3,0.55]
[1718227830344,2.038,3569.5,3568.3,0.55]
[1718227830534,3.47144514,3569.5,3568.0,0.55]
[1718227830734,3.47144514,3569.5,3568.1,0.41314592]
[1718227830735,0.58624451,3569.4,3568.1,0.41314592]
[1718227830933,0.58624451,3569.4,3568.2,0.55]
[1718227837052,2.391,3569.7,3568.3,2.07552764]
[1718227837261,2.391,3569.7,3568.4,4.58413112]
[1718227837762,2.391,3569.7,3568.4,2.8431]
[1718227838568,1.43344514,3569.6,3568.4,0.55]
[1718227838867,1.43344514,3569.6,3568.2,0.55]
[1718227839071,0.68244451,3569.5,3568.2,1.17562459]
[1718227840879,1.43344514,3569.6,3568.2,1.17562459]
[1718227841243,2.391,3569.7,3568.2,1.17562459]
[1718227841244,2.391,3569.7,3568.2,3.24958196]
[1718227841445,2.391,3569.7,3568.3,0.05603196]
[1718227841764,2.391,3569.7,3568.4,0.55]
[1718227841970,2.391,3569.7,3568.5,0.05603203]
[1718227842148,2.391,3569.7,3568.6,0.55]
[1718227842480,2.391,3569.7,3568.4,0.55]
[1718227842779,2.391,3569.7,3568.5,0.3249582]
[1718227842962,2.391,3569.7,3568.6,0.55]
[1718227843865,2.391,3569.7,3568.7,0.05603212]
[1718227844056,2.391,3569.7,3568.8,0.05603212]
[1718227846570,2.391,3569.7,3568.6,0.55]
[1718227846779,2.391,3569.7,3568.7,0.33418582]
[1718227850477,2.391,3569.7,3568.8,0.05603228]
[1718227851783,1.43344514,3569.6,3568.2,0.62562459]
[1718227851949,1.43344514,3569.6,3568.3,0.55]
[1718227856978,0.848,3569.3,3568.3,0.55]
[1718227857192,1.43344514,3569.6,3568.4,0.20236246]
[1718227857356,0.848,3569.4,3568.4,1.05036246]
[1718227858470,0.848,3569.3,3568.4,1.05036246]
[1718227859122,3.0,3570.2,3568.5,2.52723709]
[1718227859265,0.848,3569.7,3568.6,1.81075996]
[1718227859461,0.848,3569.7,3568.7,0.05603209]
[1718227859772,0.848,3569.7,3568.8,1.45403156]
[1718227859973,0.848,3569.9,3568.9,2.4712]
[1718227860322,2.28144514,3569.9,3569.0,0.05603156]
[1718227860598,2.28144514,3569.9,3569.0,0.39355472]
[1718227860815,2.2806,3570.1,3569.0,0.39355472]
[1718227860985,0.848,3569.8,3569.0,0.39355472]
[1718227861387,0.848,3570.2,3569.2,0.848]
[1718227861616,0.848,3570.2,3569.4,2.2655]
[1718227861786,0.848,3570.2,3569.5,0.05601985]
[1718227862418,0.848,3570.3,3569.5,0.05601985]
[1718227862922,7.46,3570.7,3569.5,0.05601985]
[1718227863130,3.0,3570.6,3569.5,0.05601985]
[1718227863323,0.64684451,3570.6,3569.5,0.05601985]
[1718227866709,1.43344514,3570.7,3569.6,2.4276]
[1718227866909,1.43344514,3570.7,3569.7,0.05601991]
[1718227872895,1.43344514,3570.7,3569.6,2.4276]
[1718227874043,1.43344514,3570.7,3569.7,0.05602]
[1718227883019,0.848,3570.3,3569.7,0.05602]
[1718227886353,0.848,3570.5,3569.7,0.304382]
[1718227886642,0.848,3570.3,3569.7,0.05602]
[1718227886844,0.848,3570.3,3569.6,2.4276]
[1718227891037,3.0,3570.8,3569.7,0.05602013]
[1718227891243,0.848,3570.4,3569.8,0.05601695]
[1718227891822,0.848,3570.4,3569.6,2.4276]
[1718227892119,0.848,3570.4,3569.7,0.55]
[1718227892936,0.848,3570.4,3569.8,0.05601704]
[1718227895358,0.848,3570.2,3569.7,0.55]
[1718227895826,0.848,3570.4,3569.7,0.55]
[1718227896263,0.848,3570.4,3569.7,0.84776]
[1718227896450,0.848,3570.4,3569.8,0.05601704]
[1718227896750,0.848,3570.4,3569.7,0.84776]
[1718227897147,0.848,3570.4,3569.7,0.55]
[1718227898729,0.848,3570.4,3569.8,0.05601707]
[1718227899030,0.848,3570.4,3569.7,0.55]
[1718227900561,0.848,3570.2,3569.6,2.4276]
[1718227901266,3.0,3570.8,3569.2,2.533]
[1718227901267,2.3303,3570.3,3569.2,2.4447]
[1718227901601,0.848,3570.2,3569.3,0.05602634]
[1718227902063,3.76374514,3570.3,3569.3,0.05602634]
[1718227902269,0.848,3570.1,3569.2,6.02615916]
[1718227902477,1.30917451,3570.1,3569.2,6.02615916]
[1718227902771,0.848,3569.9,3569.2,6.02615916]
[1718227902931,0.848,3569.9,3569.2,5.4447]
[1718227904350,0.848,3569.9,3569.2,6.02615916]
[1718227905288,0.848,3569.9,3569.3,0.58145916]
[1718227905630,0.46117451,3570.1,3569.3,0.58145916]
[1718227905856,0.848,3569.9,3569.3,0.58145916]
[1718227906334,0.848,3569.9,3569.2,6.02615916]
[1718227906778,0.848,3569.9,3569.0,0.87218874]
[1718227906779,0.848,3569.3,3569.0,0.58145916]
[1718227907081,0.848,3569.3,3568.9,0.87218874]
[1718227907082,0.848,3569.3,3568.9,0.58145916]
[1718227907250,0.848,3569.5,3568.8,2.96165916]
[1718227908338,0.848,3569.5,3568.8,2.3802]
[1718227912268,1.17531,3569.5,3568.8,2.3802]
[1718227914055,1.17531,3569.5,3568.5,2.84745916]
[1718227914576,1.17531,3569.5,3568.5,2.266]
[1718227914948,0.848,3569.3,3568.5,2.266]
[1718227916364,0.32731,3569.5,3568.5,2.266]
[1718227916682,4.15213711,3570.0,3568.5,3.02276479]
[1718227916854,0.848,3569.4,3568.5,3.60422395]
[1718227917385,0.848,3569.4,3568.5,3.02276479]
[1718227917681,0.848,3569.4,3568.6,0.4452224]
[1718227919277,3.0,3569.9,3568.6,0.4452224]
[1718227919278,0.848,3569.5,3568.6,0.4452224]
[1718227920377,2.28144514,3569.5,3568.6,0.4452224]
[1718227920548,0.848,3569.3,3568.6,0.4452224]
[1718227925195,0.648,3569.3,3568.6,0.4452224]
[1718227925372,0.648,3569.3,3568.7,0.35592224]
[1718227928393,0.848,3569.1,3568.5,2.266]
[1718227928802,2.4933,3569.4,3568.5,2.266]
[1718227928984,0.848,3569.1,3568.5,2.266]
[1718227931788,3.92674514,3569.4,3568.5,2.266]
[1718227932100,0.848,3569.0,3568.5,2.266]
[1718227932296,0.848,3569.0,3568.6,0.2266]
[1718227940227,140.847,3569.0,3568.6,0.2266]
[1718227942641,140.847,3569.0,3568.2,2.94215916]
[1718227942853,140.847,3569.0,3568.3,0.55]
[1718227943337,140.847,3569.0,3568.3,1.13145916]
[1718227947248,140.847,3569.0,3568.4,0.58145916]
[1718227948040,140.847,3569.0,3568.3,1.13145916]
[1718227948246,140.847,3569.0,3568.4,0.58145916]
[1718227948749,0.848,3568.8,3568.4,0.58145916]
[1718227948909,0.848,3568.6,3568.3,1.13145916]
[1718227949540,0.848,3568.8,3568.3,1.13145916]
[1718227950810,0.848,3568.8,3568.4,0.58145916]
[1718227951013,0.848,3568.8,3568.3,1.13145916]
[1718227951444,0.848,3568.8,3568.4,0.58145916]
[1718227951726,139.999,3569.0,3568.4,0.58145916]
[1718227951940,0.848,3568.8,3568.4,0.58145916]
[1718227952245,0.848,3568.8,3568.4,1.22306401]
[1718227953545,139.999,3569.0,3568.5,2.349]
[1718227953721,139.999,3569.0,3568.6,0.58145916]
[1718227953925,139.999,3569.0,3568.8,0.58145916]
[1718227954126,139.999,3569.0,3568.9,0.58145916]
[1718227954435,139.999,3569.0,3568.8,0.58145916]
[1718227955548,139.999,3569.0,3568.7,0.58145916]
[1718227955721,139.999,3569.0,3568.7,1.33689633]
[1718227956350,139.999,3569.0,3568.8,0.58145916]
[1718227960532,139.999,3569.0,3568.7,1.33689633]
[1718227960732,139.999,3569.0,3568.7,0.58145916]
[1718227961738,139.999,3569.0,3568.8,0.58145916]
[1718227963235,139.999,3569.0,3568.9,2.2894]
[1718227963437,139.999,3569.0,3568.9,3.42085916]
[1718227963957,139.999,3569.0,3568.9,2.8394]
[1718227964155,139.999,3569.0,3568.9,3.68977076]
[1718227964460,139.999,3569.0,3568.9,3.13977076]
[1718227964821,139.999,3569.0,3568.9,3.7238753]
[1718227965574,139.999,3569.0,3568.9,3.13977076]
[1718227965877,139.999,3569.0,3568.9,3.72383191]
[1718227966020,139.999,3569.0,3568.9,3.13977076]
[1718227966224,139.999,3569.0,3568.9,3.72378188]
[1718227966540,139.999,3569.0,3568.9,1.43438188]
[1718227966727,139.999,3569.0,3568.9,0.58401112]
[1718227967633,139.999,3569.0,3568.8,0.58401112]
[1718227974429,139.999,3569.0,3568.9,2.25]
[1718227975334,139.999,3569.0,3568.8,0.58401112]
[1718227978456,139.999,3569.0,3568.9,0.58401112]
[1718227979348,139.999,3569.0,3568.8,0.58401112]
[1718227979548,139.999,3569.0,3568.9,0.14561999]
[1718227983985,139.999,3569.0,3568.9,0.72963111]
[1718227984156,139.999,3569.0,3568.9,0.14561999]
[1718227986595,139.999,3569.0,3568.8,0.58401112]
[1718227994887,139.999,3569.0,3568.7,0.58401112]
[1718227995878,139.999,3569.0,3568.6,0.58401112]
[1718227998379,139.999,3569.0,3568.7,0.58401112]
[1718228002391,139.999,3569.0,3568.8,0.58401112]
[1718228002891,139.999,3569.0,3568.7,0.58401112]
[1718228003293,139.999,3569.0,3568.8,0.58401112]
[1718228007220,139.999,3569.0,3568.7,0.58401112]
[1718228008258,139.999,3569.0,3568.8,0.58401112]
[1718228018455,139.999,3569.0,3568.8,1.04062818]
[1718228018968,139.999,3569.0,3568.9,0.58401112]
[1718228019426,139.999,3569.0,3568.8,1.04062818]
[1718228020445,139.999,3569.0,3568.9,0.58401112]
[1718228021929,139.999,3569.0,3568.9,2.8837]
[1718228022145,139.999,3569.0,3568.9,6.81130866]
[1718228022353,139.999,3569.0,3568.9,12.34538358]
[1718228022744,139.999,3569.0,3568.9,10.88617235]
[1718228023177,139.999,3569.0,3568.9,12.34406506]
[1718228023385,139.999,3569.0,3568.9,10.88617235]
[1718228023867,139.999,3569.0,3568.9,12.34402559]
[1718228026165,139.999,3569.0,3568.9,10.88617235]
[1718228028434,139.999,3569.0,3568.9,12.05142229]
[1718228032171,139.999,3569.0,3568.9,8.55247235]
[1718228032465,139.999,3569.0,3568.9,9.42598165]
[1718228033472,139.999,3569.0,3568.9,8.55247235]
[1718228034180,139.999,3569.0,3568.9,9.4257094]
[1718228034494,139.999,3569.0,3568.9,8.55247235]
[1718228035040,139.999,3569.0,3568.9,9.42561711]
[1718228037674,140.847,3569.0,3568.9,9.42561711]
[1718228038875,139.999,3569.0,3568.9,9.42561711]
[1718228039069,139.999,3569.0,3568.9,10.94837235]
[1718228039454,139.999,3569.0,3568.9,12.11362229]
[1718228044442,139.999,3569.0,3568.9,10.94837235]
[1718228045860,139.986,3569.0,3568.9,12.11362229]
[1718228046055,139.986,3569.0,3568.9,10.94837235]
[1718228046984,139.986,3569.0,3568.9,12.11362229]
[1718228050167,139.986,3569.0,3568.9,8.55247235]
[1718228050362,139.986,3569.0,3568.9,9.4251293]
[1718228050788,139.986,3569.0,3568.9,3.55]
[1718228051102,139.986,3569.0,3568.9,3.0]
[1718228051305,139.986,3569.0,3568.9,3.58185572]
[1718228051467,139.986,3569.0,3568.9,0.58185572]
[1718228052093,140.834,3569.0,3568.9,2.4305]
[1718228052328,140.834,3569.0,3568.9,9.71480532]
[1718228052473,139.986,3569.0,3568.9,9.71480532]
[1718228052673,140.834,3569.0,3568.9,10.24933821]
[1718228053599,139.986,3569.0,3568.9,10.63751047]
[1718228053822,139.986,3569.0,3568.9,9.47226053]
[1718228054291,139.986,3569.0,3568.9,10.92747422]
[1718228054669,139.986,3569.0,3568.9,12.60947422]
[1718228055002,139.986,3569.0,3568.9,11.15426053]
[1718228055181,139.986,3569.0,3568.9,12.60947422]
[1718228056701,139.986,3569.0,3568.9,10.92747422]
[1718228058206,139.986,3569.0,3568.9,9.47226053]
[1718228059097,139.986,3569.0,3568.9,9.23013943]
[1718228059405,139.986,3569.0,3568.9,7.28371295]
[1718228059577,139.986,3569.0,3568.9,7.52581627]
[1718228060175,139.986,3569.0,3568.9,7.28371295]
[1718228060508,139.986,3569.0,3568.9,7.52581948]
[1718228062411,139.986,3569.0,3568.9,7.28371295]
[1718228065402,139.986,3569.0,3568.9,8.96571295]
[1718228065604,139.986,3569.0,3568.9,11.76769295]
[1718228069920,139.986,3569.0,3568.9,18.69847295]
[1718228069921,137.17953731,3569.0,3568.9,18.69847295]
[1718228070417,137.17953731,3569.0,3568.9,18.90011345]
[1718228070615,137.17953731,3569.0,3568.9,19.65011345]
[1718228070919,137.17953731,3569.0,3568.9,19.65010533]
[1718228071088,137.17953731,3569.0,3568.9,19.44847295]
[1718228071511,123.5492662,3569.0,3568.9,37.04545054]
[1718228071686,122.3959162,3569.0,3568.9,37.80386048]
[1718228072024,121.4066162,3569.0,3568.9,37.86867745]
[1718228072196,120.8457162,3569.0,3568.9,37.86867745]
[1718228072392,120.5656162,3569.0,3568.9,37.11867745]
[1718228072605,120.0047162,3569.0,3568.9,37.11867745]
[1718228072782,119.4443162,3569.0,3568.9,37.86867745]
[1718228072985,118.8834162,3569.0,3568.9,37.86867745]
[1718228073999,118.19304019,3569.0,3568.9,37.86867745]
[1718228074318,117.61154019,3569.0,3568.9,37.86867745]
[1718228074516,117.61154019,3569.0,3568.9,35.06669745]
[1718228074929,91.98447443,3569.0,3568.9,35.41600113]
[1718228075128,89.88237801,3569.0,3568.9,36.49562471]
[1718228075311,88.33719198,3569.0,3568.9,70.74562471]
[1718228075616,87.66604177,3569.0,3568.9,95.83689271]
[1718228075822,86.69481811,3569.0,3568.9,95.03731271]
[1718228076119,86.61079603,3569.0,3568.9,90.77218171]
[1718228076423,86.29422351,3569.0,3568.9,90.77218171]
[1718228076587,86.21020143,3569.0,3568.9,90.77218171]
[1718228076788,85.08885342,3569.0,3568.9,89.67780671]
[1718228076984,84.50003643,3569.0,3568.9,89.67780671]
[1718228077188,84.41601435,3569.0,3568.9,90.29787086]
[1718228077491,77.99250607,3569.0,3568.9,92.13262467]
[1718228077991,77.90848399,3569.0,3568.9,92.13262467]
[1718228078192,77.90848399,3569.0,3568.9,91.38262467]
[1718228078417,77.63456191,3569.0,3568.9,90.53462467]
[1718228078721,72.87453682,3569.0,3568.9,92.13262467]
[1718228078921,68.69627241,3569.0,3568.9,95.5729854]
[1718228079132,61.46343718,3569.0,3568.9,96.3229854]
[1718228079425,59.61141753,3569.0,3568.9,95.5729854]
[1718228079585,58.08639545,3569.0,3568.9,96.3229854]
[1718228079790,56.68539545,3569.0,3568.9,95.5729854]
[1718228079990,3.1487,3571.6,3570.8,1.682]
[1718228080224,0.0254386,3571.5,3570.8,4.682]
[1718228080523,3.1487,3571.6,3570.9,0.05318569]
[1718228082113,2.3007,3571.6,3570.9,0.05318569]
[1718228082303,3.1487,3571.6,3571.0,2.28798935]
[1718228082531,3.1487,3571.6,3571.0,5.28798935]
[1718228082740,2.3007,3571.6,3571.0,5.28798935]
[1718228083047,2.3007,3571.6,3571.0,5.232]
[1718228085239,0.848,3571.5,3571.0,5.232]
[1718228085440,0.848,3571.5,3571.0,2.232]
[1718228086099,2.3007,3571.6,3571.0,2.232]
[1718228087529,0.848,3571.5,3571.0,5.232]
[1718228087941,0.848,3571.1,3570.9,1.119929]
[1718228088144,2.4585,3571.0,3570.4,7.46]
[1718228088457,2.4585,3570.5,3570.4,7.46]
[1718228088666,2.4585,3570.5,3570.1,2.6153125]
[1718228089611,0.848,3570.3,3570.1,2.6153125]
[1718228090135,0.848,3570.3,3570.2,3.0]
[1718228090535,2.4061,3571.1,3570.2,3.0]
[1718228090846,0.848,3570.6,3570.2,3.0]
[1718228091134,2.482,3570.5,3570.1,2.6153125]
[1718228091321,2.482,3570.2,3569.8,7.46]
[1718228091528,0.848,3569.9,3569.8,7.46]
[1718228092305,0.848,3569.9,3569.2,7.46]
[1718228092501,0.848,3569.9,3569.1,14.66983169]
[1718228092705,0.848,3569.9,3569.2,0.55]
[1718228093429,0.848,3569.9,3569.2,3.55]
[1718228095522,2.482,3570.2,3569.2,3.55]
[1718228095744,0.848,3569.8,3569.2,3.55]
[1718228096947,0.848,3569.6,3569.2,3.55]
[1718228097117,2.482,3570.2,3569.2,3.55]
[1718228097314,0.848,3569.6,3569.2,3.55]
[1718228097516,0.848,3569.6,3569.2,6.28]
[1718228097716,2.482,3570.2,3569.2,6.28]
[1718228097933,0.848,3569.6,3569.2,5.73]
[1718228098249,0.848,3569.6,3569.2,6.30760967]
[1718228098745,0.848,3570.0,3569.3,0.57760967]
[1718228099170,0.848,3570.0,3569.4,0.02128401]
[1718228099329,0.848,3570.0,3569.4,0.05601725]
[1718228101156,0.848,3570.0,3569.3,0.57760967]
[1718228101464,4.5924,3570.9,3569.4,0.63362763]
[1718228101661,0.848,3570.0,3569.4,0.63362763]
[1718228102386,4.5924,3570.9,3569.4,0.63362763]
[1718228102663,0.848,3569.8,3569.4,0.63362763]
[1718228103660,0.848,3569.8,3569.4,3.63362763]
[1718228104036,0.848,3569.8,3569.4,0.57760967]
[1718228104238,0.848,3569.8,3569.5,3.0560167]
[1718228104443,0.848,3569.8,3569.5,0.0560167]
[1718228105165,0.848,3569.8,3569.4,3.57760967]
[1718228105836,0.848,3569.8,3569.5,0.056018]
[1718228106034,0.848,3569.8,3569.4,3.57760967]
[1718228106435,0.848,3569.8,3569.5,0.05601739]
[1718228106771,0.848,3569.8,3569.4,3.57760967]
[1718228114382,0.848,3569.8,3569.5,0.57760967]
[1718228114774,0.848,3569.8,3569.4,3.57760967]
[1718228115153,0.848,3569.8,3569.5,0.57760967]
[1718228117795,4.311,3570.2,3569.5,0.57760967]
[1718228118110,0.848,3569.6,3569.4,3.81968542]
[1718228118783,4.311,3570.2,3569.4,3.24207575]
[1718228118985,0.848,3569.5,3569.4,3.81968542]
[1718228119188,0.848,3569.5,3569.4,3.24207575]
[1718228121760,0.848,3569.5,3569.4,3.24207899]
[1718228122480,0.848,3569.5,3569.4,3.0]
[1718228123490,0.848,3569.5,3569.3,2.97207899]
[1718228123707,0.848,3569.5,3569.3,2.73]
[1718228125172,0.848,3569.5,3569.1,0.24207899]
[1718228125375,0.848,3569.3,3569.0,0.57760967]
[1718228125893,0.848,3569.3,3569.0,3.30760967]
[1718228126092,0.848,3569.3,3569.1,3.0]
[1718228126297,0.848,3569.3,3569.0,0.57760967]
[1718228127562,0.848,3569.3,3569.0,3.57760967]
[1718228127762,0.848,3569.3,3569.0,0.57760967]